bitfinex/quotes_SOLUSD_20250424
["timestamp","ask_amount","ask_price","bid_price","bid_amount"]
[1745534673579,99.19287252,151.15,151.13,1.6489]
[1745534674490,9.8769281,151.14,151.13,0.063]
[1745534674800,28.52657696,151.14,151.13,0.063]
[1745534674996,54.52657696,151.14,151.13,0.063]
[1745534676429,137.36873853,151.14,151.13,0.063]
[1745534676602,143.98512069,151.14,151.13,0.063]
[1745534679724,61.28512069,151.14,151.13,0.063]
[1745534685916,35.28512069,151.14,151.13,0.063]
[1745534686739,35.28512069,151.14,151.13,0.063]
[1745534696037,94.17645093,151.13,151.12,0.063]
[1745534696246,68.17645093,151.13,151.12,0.063]
[1745534697358,74.79327088,151.13,151.12,0.063]
[1745534701064,74.79327088,151.13,151.11,0.063]
[1745534701364,82.14405987,151.12,151.11,0.063]
[1745534703446,95.06405987,151.12,151.11,0.063]
[1745534704564,38.92,151.12,151.11,0.063]
[1745534704740,48.7969281,151.12,151.11,0.063]
[1745534705744,35.8769281,151.12,151.11,0.063]
[1745534709370,42.4941859,151.12,151.11,0.063]
[1745534709847,61.28599633,151.12,151.11,0.063]
[1745534710054,100.79370873,151.12,151.11,0.063]
[1745534710441,44.64964886,151.09,151.08,0.063]
[1745534710663,18.64964886,151.08,151.07,0.063]
[1745534710849,31.76352257,151.08,151.07,0.063]
[1745534712047,31.90568414,151.08,151.07,0.063]
[1745534712373,38.52469393,151.08,151.07,0.063]
[1745534714777,121.22469393,151.08,151.07,0.063]
[1745534717671,147.22469393,151.08,151.07,0.063]
[1745534720594,64.52469393,151.08,151.07,0.063]
[1745534726384,38.52469393,151.08,151.07,0.063]
[1745534726781,38.38253236,151.08,151.07,0.063]
[1745534726984,9.8769281,151.08,151.07,0.063]
[1745534727862,35.8769281,151.08,151.07,0.063]
[1745534728777,9.8769281,151.08,151.07,0.063]
[1745534730992,31.61104747,151.1,151.07,0.063]
[1745534731165,35.8769281,151.1,151.07,0.063]
[1745534731566,26.0,151.1,151.07,0.063]
[1745534732385,9.8769281,151.13,151.08,17.9402281]
[1745534732591,35.8769281,151.13,151.08,8.0633]
[1745534732763,35.8769281,151.13,151.09,9.8769281]
[1745534733586,35.8769281,151.13,151.1,2.46183076]
[1745534734599,35.8769281,151.13,151.09,6.61857171]
[1745534734764,9.8769281,151.12,151.09,6.61857171]
[1745534735291,9.8769281,151.12,151.08,14.68217181]
[1745534735664,9.8769281,151.12,151.09,2.46146638]
[1745534736072,9.8769281,151.1,151.09,2.46146638]
[1745534736385,9.8769281,151.1,151.08,8.0633]
[1745534737770,9.8769281,151.1,151.08,1.5417]
[1745534739394,9.8769281,151.09,151.08,1.5417]
[1745534739801,9.8769281,151.1,151.08,1.5417]
[1745534747419,26.0,151.08,151.07,0.063]
[1745534747581,28.52657696,151.08,151.07,0.063]
[1745534748604,35.14558675,151.08,151.07,0.063]
[1745534748810,61.14558675,151.08,151.07,0.063]
[1745534757016,61.28774832,151.08,151.07,0.063]
[1745534757816,61.28774832,151.08,151.06,0.063]
[1745534757817,0.14216157,151.07,151.06,0.063]
[1745534758135,48.93908967,151.07,151.06,0.063]
[1745534760014,55.5585376,151.07,151.06,0.063]
[1745534762535,48.20818646,151.07,151.06,1e-08]
[1745534763508,48.20818646,151.07,151.04,0.03]
[1745534763731,94.17645093,151.05,151.04,0.03]
[1745534764327,74.79677532,151.05,151.04,0.03]
[1745534765214,35.28906292,151.05,151.04,0.03]
[1745534770020,74.79677532,151.05,151.04,0.03]
[1745534771327,61.14821647,151.02,151.01,0.03]
[1745534771521,74.21037804,151.02,151.01,0.03]
[1745534775042,74.21037804,151.02,151.0,0.03]
[1745534775043,18.64964886,151.01,151.0,0.03]
[1745534775340,28.66873853,151.01,151.0,0.03]
[1745534775544,111.36873853,151.01,151.0,0.03]
[1745534777249,117.99081653,151.01,151.0,0.03]
[1745534779258,35.29081653,151.01,151.0,0.03]
[1745534785833,61.29081653,151.01,151.0,0.03]
[1745534787261,61.14865496,151.01,151.0,0.03]
[1745534798261,42.4990061,151.01,151.0,0.03]
[1745534807087,26.0,150.98,150.93,0.03]
[1745534807268,48.7969281,150.97,150.93,0.03]
[1745534807582,9.8769281,150.96,150.93,0.03]
[1745534808474,16.50123172,150.96,150.93,0.03]
[1745534811092,48.7969281,150.97,150.93,0.03]
[1745534811389,38.92,150.97,150.94,1.6291]
[1745534812193,12.92,150.97,150.94,11.5060281]
[1745534812374,108.7,150.99,150.94,11.5060281]
[1745534812701,108.7,150.99,150.95,2.47307332]
[1745534812863,115.32313671,150.99,150.95,2.47307332]
[1745534813284,115.32313671,150.99,150.96,2.47307332]
[1745534813492,108.7,150.99,150.96,2.47307332]
[1745534813884,108.7,150.99,150.97,2.47307332]
[1745534814895,108.7,150.99,150.95,16.50153195]
[1745534815700,108.7,150.99,150.96,2.47303739]
[1745534816368,108.7,150.99,150.97,2.47303739]
[1745534817402,108.7,150.99,150.96,2.47303739]
[1745534818393,108.7,150.99,150.97,2.47303739]
[1745534819085,108.7,150.99,150.96,16.50117583]
[1745534820706,108.7,150.99,150.97,2.47483103]
[1745534821385,108.7,150.99,150.95,16.5014338]
[1745534822789,108.7,150.99,150.96,2.47492384]
[1745534823205,26.0,150.99,150.97,2.47492384]
[1745534823902,26.0,150.99,150.95,16.5014338]
[1745534824800,26.0,150.99,150.96,2.47496649]
[1745534825473,26.0,150.99,150.96,12.35189459]
[1745534826309,26.0,150.99,150.96,18.97610189]
[1745534827787,26.0,150.99,150.97,2.47496649]
[1745534828885,26.0,150.99,150.96,16.5011354]
[1745534830392,26.0,150.99,150.97,2.47217193]
[1745534831505,26.0,150.99,150.95,16.50142347]
[1745534832602,26.0,150.99,150.96,2.47231574]
[1745534833306,26.0,150.99,150.97,2.47231574]
[1745534834308,26.0,150.99,150.96,6.62424135]
[1745534835896,26.0,150.99,150.97,2.47234295]
[1745534836809,26.0,150.99,150.96,6.62424135]
[1745534838112,26.0,150.99,150.97,2.47036338]
[1745534838911,26.0,150.99,150.98,2.47036338]
[1745534840023,42.49988326,150.99,150.98,2.47036338]
[1745534841122,32.62295516,150.99,150.95,16.50158915]
[1745534841616,32.62295516,150.99,150.96,2.47037499]
[1745534842522,32.62295516,150.99,150.97,2.47037499]
[1745534843021,32.62295516,150.99,150.95,16.50158915]
[1745534843728,32.62295516,150.99,150.96,2.47021381]
[1745534844305,26.0,150.99,150.96,2.47021381]
[1745534844517,26.0,150.99,150.96,9.09433041]
[1745534844726,26.0,150.99,150.97,2.47021381]
[1745534845328,26.0,150.99,150.96,6.6241166]
[1745534846922,26.0,150.99,150.97,2.46964301]
[1745534847536,26.0,150.99,150.96,6.6241166]
[1745534848116,26.0,150.99,150.96,16.5010447]
[1745534849234,26.0,150.99,150.97,9.09220075]
[1745534849930,82.7,151.01,150.98,2.46843257]
[1745534850510,92.5769281,151.01,150.99,2.46843257]
[1745534851529,9.8769281,151.01,150.97,6.62376818]
[1745534852023,55.4186011,151.02,150.97,16.50069628]
[1745534852236,55.4186011,151.02,150.98,2.46803834]
[1745534852437,9.8769281,151.01,150.98,2.46803834]
[1745534853240,9.8769281,151.01,150.96,16.50098892]
[1745534853939,9.8769281,151.01,150.97,2.46902]
[1745534854441,16.49924558,151.01,150.97,2.46902]
[1745534854841,16.49924558,151.01,150.98,2.46902]
[1745534855651,16.49924558,151.01,150.99,2.46902]
[1745534856541,16.49924558,151.01,150.94,20.27874886]
[1745534856748,9.8769281,150.99,150.94,1.6291]
[1745534856949,9.8769281,150.98,150.94,1.6291]
[1745534857530,9.8769281,150.98,150.95,2.47200962]
[1745534857928,6.62316321,150.99,150.95,2.47200962]
[1745534857929,16.50009131,150.99,150.95,2.47200962]
[1745534858123,16.50009131,150.99,150.96,2.47200962]
[1745534859044,16.50009131,150.99,150.97,2.47200962]
[1745534860249,16.50009131,150.99,150.98,2.47200962]
[1745534860826,16.49962607,151.0,150.98,2.47200962]
[1745534861241,16.49962607,151.0,150.95,16.50162951]
[1745534862251,16.49962607,151.0,150.96,2.47123968]
[1745534862632,82.7,151.01,150.96,2.47123968]
[1745534862633,82.7,151.01,150.96,18.97222356]
[1745534862843,82.7,151.01,150.97,9.8769281]
[1745534863046,92.5769281,151.01,150.97,2.47123968]
[1745534863552,99.19911311,151.01,150.98,2.47123968]
[1745534864553,99.19911311,151.01,150.96,16.50098388]
[1745534865366,99.19911311,151.01,150.97,9.09637591]
[1745534865652,89.32218501,151.01,150.97,9.09637591]
[1745534865854,99.19911311,151.01,150.97,2.47255009]
[1745534866246,99.19911311,151.01,150.98,2.47255009]
[1745534867656,99.19911311,151.01,150.99,2.47255009]
[1745534868334,99.19911311,151.01,150.96,6.62406047]
[1745534869349,99.19911311,151.01,150.96,9.8769281]
[1745534869557,99.19911311,151.01,150.97,2.47259605]
[1745534870450,99.19911311,151.01,150.98,2.47259605]
[1745534870931,89.32218501,151.01,150.98,2.47259605]
[1745534871358,89.32218501,151.01,150.99,2.47259605]
[1745534871931,99.19911311,151.01,150.99,2.47259605]
[1745534872230,89.32218501,151.01,150.97,6.62371495]
[1745534872629,82.7,151.01,150.97,6.62371495]
[1745534872836,82.7,151.01,150.98,2.47229339]
[1745534873260,89.32211187,151.01,150.98,2.47229339]
[1745534873758,89.32211187,151.01,150.99,2.47229339]
[1745534874864,89.32211187,151.01,150.97,6.62371495]
[1745534875361,89.32211187,151.01,150.96,9.8769281]
[1745534875857,89.32211187,151.01,150.97,2.47182212]
[1745534876062,99.19903997,151.01,150.97,2.47182212]
[1745534876763,99.19903997,151.01,150.98,2.47182212]
[1745534877344,99.19903997,151.01,150.99,2.47182212]
[1745534878147,99.19903997,151.01,150.96,6.62413297]
[1745534878963,82.7,151.0,150.97,2.47119843]
[1745534880365,82.7,151.0,150.98,2.47119843]
[1745534880865,82.7,151.0,150.99,2.47119843]
[1745534884860,138.11863641,151.02,150.99,2.47119843]
[1745534885040,138.11863641,151.02,151.0,2.47119843]
[1745534885968,138.11863641,151.02,150.97,16.50057009]
[1745534886266,35.8769281,150.99,150.94,1.6291]
[1745534886467,9.8769281,150.98,150.94,1.6291]
[1745534887470,9.8769281,150.97,150.94,1.6291]
[1745534887662,9.8769281,150.95,150.93,0.03]
[1745534887971,26.0,150.98,150.93,0.03]
[1745534887972,9.8769281,150.94,150.93,0.03]
[1745534888157,16.50207716,150.94,150.93,0.03]
[1745534889576,16.50207716,150.94,150.93,2.50323064]
[1745534890066,42.50207716,150.94,150.93,2.50323064]
[1745534890369,42.50207716,150.94,150.93,0.03]
[1745534891274,16.50207716,150.94,150.93,0.03]
[1745534891450,35.29388759,150.94,150.93,0.03]
[1745534892348,26.14216157,150.92,150.91,0.03]
[1745534892557,48.93908967,150.92,150.91,0.03]
[1745534894260,55.5651167,150.92,150.91,0.03]
[1745534944896,64.87535551,150.92,150.91,0.03]
[1745534948814,0.14216157,150.91,150.9,0.03]
[1745534949116,26.14216157,150.89,150.88,0.03]
[1745534949292,36.01908967,150.89,150.88,0.03]
[1745534950811,42.64643409,150.89,150.88,0.03]
[1745534951213,47.89007885,150.89,150.88,0.03]
[1745534952910,42.50427252,150.89,150.88,0.03]
[1745534953113,16.50427252,150.89,150.88,0.03]
[1745534953334,61.5490604,150.89,150.88,0.03]
[1745534953506,61.5490604,150.89,150.84,0.03]
[1745534953507,26.0,150.86,150.84,0.03]
[1745534953706,48.93908967,150.86,150.84,0.03]
[1745534954703,0.14216157,150.85,150.84,0.03]
[1745534954900,16.64819142,150.85,150.84,0.03]
[1745534955205,35.29784028,150.85,150.84,0.03]
[1745534957141,16.64819142,150.85,150.84,0.03]
[1745534957618,35.29784028,150.85,150.84,0.03]
[1745534958325,16.64819142,150.85,150.84,0.03]
[1745534962714,38.92,150.85,150.84,0.03]
[1745534962901,48.7969281,150.85,150.84,0.03]
[1745534963399,48.93908967,150.85,150.84,0.03]
[1745534963800,67.58873853,150.85,150.84,0.03]
[1745534964020,0.14216157,150.84,150.83,0.03]
[1745534964210,0.14216157,150.84,150.81,0.03]
[1745534964211,44.79181043,150.82,150.81,0.03]
[1745534964418,54.66873853,150.82,150.81,0.03]
[1745534964599,26.0,150.78,150.77,0.03]
[1745534964807,52.19462478,150.78,150.77,0.03]
[1745534965319,38.92,150.78,150.77,0.03]
[1745534965841,12.92,150.78,150.77,9.9069281]
[1745534966009,12.92,150.82,150.77,16.53954732]
[1745534966210,12.92,150.82,150.78,9.8769281]
[1745534966404,38.92,150.82,150.78,9.8769281]
[1745534966608,48.7969281,150.82,150.78,9.8769281]
[1745534967120,38.92,150.82,150.78,9.8769281]
[1745534967328,38.92,150.82,150.77,6.66261922]
[1745534967504,38.92,150.82,150.78,9.8769281]
[1745534968001,38.92,150.82,150.77,6.66261922]
[1745534968203,55.4273575,150.82,150.77,0.03]
[1745534968425,55.4273575,150.82,150.77,9.9069281]
[1745534968600,48.7969281,150.82,150.77,9.9069281]
[1745534969536,48.7969281,150.82,150.78,9.8769281]
[1745534969712,38.92,150.82,150.78,9.8769281]
[1745534969912,121.62,150.82,150.78,16.50896161]
[1745534970312,128.25046383,150.82,150.78,9.8769281]
[1745534970736,128.25046383,150.82,150.78,16.50905038]
[1745534971331,121.62,150.82,150.78,16.50905038]
[1745534972011,128.25076094,150.82,150.78,9.8769281]
[1745534972339,128.25076094,150.82,150.77,0.03]
[1745534972508,128.25076094,150.82,150.78,9.8769281]
[1745534973637,128.25076094,150.82,150.77,6.66233958]
[1745534974015,128.25076094,150.82,150.78,9.8769281]
[1745534977058,9.8769281,150.81,150.77,0.03]
[1745534978637,6.63129973,150.8,150.77,0.03]
[1745534981643,89.33129973,150.8,150.77,0.03]
[1745534981815,99.20822783,150.8,150.77,0.03]
[1745534982726,35.8769281,150.78,150.77,0.03]
[1745534983850,42.50910743,150.78,150.77,0.03]
[1745534987339,35.8769281,150.78,150.77,0.03]
[1745534987543,26.0,150.78,150.77,0.03]
[1745534987842,92.5769281,150.81,150.77,0.03]
[1745534988146,26.0,150.8,150.77,0.03]
[1745534989248,26.0,150.8,150.77,9.9069281]
[1745534989546,99.2078351,150.81,150.77,0.03]
[1745534990046,125.2078351,150.81,150.77,0.03]
[1745534991862,115.330907,150.81,150.77,0.03]
[1745534992149,108.7,150.81,150.77,9.9069281]
[1745534992355,115.33089727,150.81,150.77,9.9069281]
[1745534992555,125.20782537,150.81,150.77,0.03]
[1745534994452,118.5769281,150.81,150.77,0.03]
[1745534995177,125.20781906,150.81,150.77,0.03]
[1745534996251,108.7,150.81,150.77,9.9069281]
[1745534996457,108.7,150.81,150.77,16.53929745]
[1745534996657,108.7,150.81,150.78,9.8769281]
[1745534997946,108.7,150.81,150.77,16.53929745]
[1745534999350,32.63087953,150.81,150.77,16.53929745]
[1745534999541,26.0,150.81,150.77,16.53929745]
[1745534999865,42.50786994,150.81,150.77,0.03]
[1745535000158,9.8769281,150.78,150.77,0.03]
[1745535001056,16.50910743,150.78,150.77,0.03]
[1745535001255,42.50910743,150.78,150.77,0.03]
[1745535004658,39.64987397,150.8,150.77,0.03]
[1745535004659,9.8769281,150.79,150.77,0.03]
[1745535005541,35.8769281,150.8,150.77,0.03]
[1745535006074,42.50825436,150.8,150.77,0.03]
[1745535012867,9.8769281,150.79,150.77,0.03]
[1745535029693,9.8769281,150.78,150.77,0.03]
[1745535030085,35.8769281,150.78,150.77,0.03]
[1745535032579,42.50910743,150.78,150.77,0.03]
[1745535036667,35.8769281,150.76,150.75,0.03]
[1745535036871,48.7969281,150.76,150.75,0.03]
[1745535037699,55.42998726,150.76,150.75,0.03]
[1745535038298,55.57214883,150.76,150.75,0.03]
[1745535042788,55.42998726,150.76,150.75,0.03]
[1745535043399,55.57214883,150.76,150.75,0.03]
[1745535062108,19.55305916,150.76,150.75,0.03]
[1745535062324,29.42998726,150.76,150.75,0.03]
[1745535062530,55.42998726,150.76,150.75,0.03]
[1745535063745,38.92,150.76,150.75,0.03]
[1745535064107,45.55305916,150.76,150.75,0.03]
[1745535065958,55.42998726,150.76,150.75,0.03]
[1745535070922,29.42998726,150.76,150.75,0.03]
[1745535071125,55.57214883,150.76,150.75,0.03]
[1745535071313,29.57214883,150.76,150.75,0.03]
[1745535088355,55.57214883,150.76,150.75,0.03]
[1745535088886,26.0,150.72,150.7,0.03]
[1745535089046,22.7969281,150.71,150.7,0.03]
[1745535090556,29.43218787,150.71,150.7,0.03]
[1745535090760,29.57434944,150.71,150.7,0.03]
[1745535119483,48.2239983,150.71,150.7,1e-08]
[1745535119792,0.14216157,150.68,150.63,1.5333]
[1745535120093,26.0,150.64,150.63,1.5333]
[1745535120263,7.3375604,150.68,150.63,11.4102281]
[1745535120471,46.2575604,150.68,150.65,9.8769281]
[1745535121071,38.92,150.68,150.66,11.4267281]
[1745535121369,38.92,150.68,150.67,9.8769281]
[1745535121587,82.7,150.71,150.67,9.8769281]
[1745535121897,12.92,150.72,150.7,1.5498]
[1745535122290,12.92,150.72,150.71,9.8769281]
[1745535122986,108.7,150.74,150.71,9.8769281]
[1745535123511,108.7,150.74,150.71,16.511945]
[1745535123692,108.7,150.74,150.72,9.8769281]
[1745535124219,19.55220939,150.78,150.73,9.8769281]
[1745535124393,26.0,150.75,150.73,9.8769281]
[1745535124587,26.0,150.75,150.72,1.5498]
[1745535124811,26.0,150.75,150.73,9.8769281]
[1745535127611,26.0,150.75,150.72,11.4267281]
[1745535127909,26.0,150.75,150.72,1.5498]
[1745535128900,26.0,150.75,150.72,11.4267281]
[1745535129410,26.0,150.75,150.72,1.5498]
[1745535129982,42.51059487,150.75,150.72,1.5498]
[1745535130913,32.63366677,150.75,150.72,1.5498]
[1745535132017,26.0,150.73,150.72,1.5498]
[1745535132316,26.0,150.73,150.72,11.4267281]
[1745535132913,82.7,150.75,150.72,18.06154763]
[1745535133128,82.7,150.75,150.73,9.8769281]
[1745535133995,82.7,150.75,150.73,16.51125175]
[1745535134524,82.7,150.75,150.74,9.8769281]
[1745535137115,26.0,150.75,150.74,9.8769281]
[1745535137324,26.0,150.75,150.73,9.8769281]
[1745535138720,26.0,150.75,150.73,16.51121701]
[1745535141898,12.92,150.78,150.74,9.8769281]
[1745535142221,12.92,150.78,150.75,9.8769281]
[1745535142537,12.92,150.78,150.76,9.8769281]
[1745535142904,12.92,150.78,150.76,16.50973175]
[1745535143728,12.92,150.78,150.76,9.8769281]
[1745535144097,12.92,150.78,150.75,16.51022299]
[1745535144929,26.0,150.77,150.73,9.8769281]
[1745535145537,26.0,150.77,150.72,11.4267281]
[1745535145741,32.63273887,150.77,150.72,18.06134962]
[1745535146044,32.63273887,150.77,150.73,2.46827486]
[1745535146842,32.63273887,150.77,150.72,11.4267281]
[1745535147537,32.63273887,150.77,150.72,11.28888938]
[1745535147722,32.63273887,150.77,150.72,17.92350071]
[1745535152648,32.63273887,150.77,150.73,16.51130037]
[1745535152950,26.0,150.77,150.73,16.51130037]
[1745535153650,26.0,150.77,150.73,6.63437227]
[1745535154028,26.0,150.77,150.73,16.51130037]
[1745535155126,26.0,150.77,150.73,6.63437227]
[1745535155328,26.0,150.77,150.73,16.51130037]
[1745535155728,26.0,150.77,150.72,11.28888938]
[1745535155729,42.50968501,150.77,150.72,11.28888938]
[1745535156023,42.50968501,150.77,150.72,17.92366844]
[1745535157659,125.20968501,150.77,150.72,17.92366844]
[1745535158559,125.20968501,150.77,150.73,9.1054316]
[1745535158770,108.7,150.77,150.73,9.1054316]
[1745535159051,108.7,150.77,150.73,18.9823597]
[1745535159657,115.33266209,150.77,150.73,16.51122976]
[1745535160157,108.7,150.77,150.73,16.51122976]
[1745535161141,115.3326653,150.77,150.73,6.63430166]
[1745535162235,115.3326653,150.77,150.72,17.92350562]
[1745535162659,115.3326653,150.77,150.72,8.04657752]
[1745535162956,115.3326653,150.77,150.73,9.8769281]
[1745535163260,108.7,150.77,150.73,18.98615032]
[1745535163639,108.7,150.77,150.75,9.8769281]
[1745535163855,108.7,150.77,150.76,9.8769281]
[1745535164041,108.7,150.77,150.75,9.8769281]
[1745535164358,82.7,150.8,150.76,9.8769281]
[1745535164544,108.7,150.8,150.76,12.35463223]
[1745535164857,108.7,150.8,150.78,9.8769281]
[1745535165154,0.063,150.81,150.79,9.8769281]
[1745535165341,0.063,150.81,150.78,9.8769281]
[1745535166455,0.063,150.81,150.78,16.50904197]
[1745535166654,0.063,150.81,150.79,9.8769281]
[1745535168247,0.063,150.81,150.78,16.50904197]
[1745535168575,9.8769281,150.8,150.77,1.606]
[1745535168763,9.8769281,150.8,150.73,1.6626]
[1745535168960,92.5769281,150.8,150.74,22.9634803]
[1745535169159,92.5769281,150.8,150.75,2.47833244]
[1745535169464,26.0,150.79,150.75,2.47833244]
[1745535169847,32.63185834,150.79,150.76,2.47833244]
[1745535170048,42.50878644,150.79,150.76,2.47833244]
[1745535170764,42.50878644,150.79,150.74,22.9634803]
[1745535171866,42.50878644,150.79,150.75,2.478437]
[1745535172467,42.50878644,150.79,150.76,2.478437]
[1745535173067,42.50878644,150.79,150.74,16.5105803]
[1745535173869,42.50878644,150.79,150.75,2.47854279]
[1745535174848,42.50878644,150.79,150.76,2.47854279]
[1745535175864,42.50878644,150.79,150.74,16.5105803]
[1745535176478,42.50878644,150.79,150.75,2.47948061]
[1745535177479,42.50878644,150.79,150.76,2.47948061]
[1745535178480,42.50878644,150.79,150.77,2.47948061]
[1745535179378,42.50878644,150.79,150.74,16.5105803]
[1745535179872,9.8769281,150.78,150.73,11.5395281]
[1745535180074,9.8769281,150.78,150.75,2.48031661]
[1745535180264,9.8769281,150.77,150.75,2.48031661]
[1745535180665,16.50989158,150.77,150.75,2.48031661]
[1745535180862,16.50989158,150.77,150.73,1.6626]
[1745535181680,16.50989158,150.77,150.74,2.48069602]
[1745535182379,16.50919174,150.78,150.74,2.48069602]
[1745535182575,26.0,150.77,150.75,12.35762412]
[1745535182959,26.0,150.77,150.75,18.9910428]
[1745535183159,26.0,150.77,150.76,2.48069602]
[1745535184086,99.20841252,150.8,150.76,2.48069602]
[1745535184271,26.0,150.79,150.76,2.48069602]
[1745535184785,26.0,150.78,150.77,2.48069602]
[1745535185484,26.0,150.78,150.77,18.99024334]
[1745535185660,108.7,150.8,150.77,18.99024334]
[1745535186567,108.7,150.8,150.78,2.48069602]
[1745535186883,26.0,150.8,150.78,2.48069602]
[1745535187075,26.0,150.8,150.79,2.48069602]
[1745535189277,12.983,150.81,150.79,2.48069602]
[1745535190178,12.983,150.81,150.79,18.98919609]
[1745535190381,12.983,150.81,150.79,16.50850007]
[1745535190680,0.063,150.81,150.79,16.50850007]
[1745535191068,0.063,150.81,150.8,2.47887348]
[1745535192266,0.063,150.81,150.79,9.8769281]
[1745535193085,0.063,150.81,150.79,16.50855348]
[1745535193682,0.063,150.81,150.8,9.8769281]
[1745535196093,0.063,150.81,150.8,16.50822783]
[1745535196799,0.063,150.81,150.8,9.8769281]
[1745535197099,0.063,150.81,150.8,12.35469155]
[1745535199880,0.063,150.81,150.8,18.98599128]
[1745535200675,0.063,150.81,150.8,12.35469155]
[1745535202303,0.063,150.81,150.8,9.8769281]
[1745535202796,0.063,150.81,150.8,16.50822783]
[1745535203306,0.063,150.81,150.8,35.15787669]
[1745535204090,0.063,150.81,150.8,37.63422623]
[1745535205304,0.063,150.81,150.8,83.57263863]
[1745535210984,0.063,150.82,150.81,18.64964886]
[1745535211185,0.063,150.82,150.81,28.52657696]
[1745535211400,0.063,150.82,150.81,31.0029265]
[1745535211909,0.063,150.84,150.81,31.14508807]
[1745535212086,0.063,150.84,150.83,11.5421281]
[1745535212595,0.063,150.84,150.83,14.01847764]
[1745535213409,0.063,150.84,150.83,20.64845841]
[1745535218806,0.063,150.84,150.83,39.29810727]
[1745535219007,0.063,150.88,150.83,55.8730592]
[1745535219207,0.063,150.88,150.87,9.8769281]
[1745535220794,0.063,150.88,150.87,16.50515107]
[1745535222126,0.063,150.88,150.87,18.96773802]
[1745535224219,0.063,150.88,150.87,37.61738688]
[1745535226412,0.063,150.88,150.87,35.15479993]
[1745535226711,0.063,150.88,150.87,37.61464123]
[1745535227317,0.063,150.88,150.87,18.96499237]
[1745535227526,0.063,150.88,150.87,16.50515107]
[1745535229325,0.063,150.88,150.87,18.96670182]
[1745535233334,0.063,150.88,150.87,16.50515107]
[1745535234701,0.063,150.88,150.87,37.61833832]
[1745535236631,0.063,150.88,150.87,2.46353839]
[1745535237137,0.063,150.88,150.85,9.8769281]
[1745535237340,0.063,150.88,150.84,9.8769281]
[1745535237807,0.063,150.88,150.83,9.8769281]
[1745535238241,0.063,150.88,150.82,25.28006922]
[1745535238538,0.063,150.88,150.84,9.8769281]
[1745535238717,6.69078366,150.88,150.84,9.8769281]
[1745535239707,6.69078366,150.88,150.83,9.8769281]
[1745535239907,6.69078366,150.88,150.84,9.8769281]
[1745535241005,16.56771176,150.88,150.83,9.8769281]
[1745535241522,9.8769281,150.87,150.82,9.8769281]
[1745535241726,26.0,150.86,150.82,9.8769281]
[1745535242739,42.50598322,150.86,150.81,6.63067788]
[1745535242917,42.50598322,150.86,150.81,16.50760598]
[1745535243119,9.8769281,150.85,150.8,16.50803092]
[1745535243914,9.8769281,150.85,150.81,2.46846029]
[1745535244745,6.62925155,150.85,150.81,12.34538839]
[1745535244919,6.62925155,150.85,150.81,9.8769281]
[1745535248718,6.62925155,150.85,150.8,6.63110282]
[1745535248719,9.8769281,150.82,150.77,0.03]
[1745535249034,45.2964,150.81,150.78,2.47190468]
[1745535249228,9.8769281,150.79,150.78,2.47190468]
[1745535249847,9.8769281,150.79,150.77,0.03]
[1745535250060,9.8769281,150.78,150.77,0.03]
[1745535250250,35.8769281,150.78,150.77,0.03]
[1745535250637,42.50910743,150.78,150.77,0.03]
[1745535251033,18.248869,150.78,150.77,0.03]
[1745535252644,18.248869,150.78,150.77,1e-08]
[1745535253073,43.10821786,150.78,150.77,1e-08]
[1745535253235,26.14216157,150.77,150.75,0.03]
[1745535253569,48.7969281,150.76,150.75,0.03]
[1745535254547,55.42998726,150.76,150.75,0.03]
[1745535256363,55.57214883,150.76,150.75,1e-08]
[1745535256561,74.22179769,150.76,150.75,1e-08]
[1745535257946,74.22179769,150.76,150.7,0.03]
[1745535257947,18.79181043,150.75,150.7,0.03]
[1745535258151,9.8769281,150.71,150.7,0.03]
[1745535258362,22.93908967,150.71,150.7,0.03]
[1745535259257,29.57434944,150.71,150.7,0.03]